bitfinex/quotes_SOLUSD_20220208
["timestamp","ask_amount","ask_price","bid_price","bid_amount"]
[1644309470219,23.3844,115.11,114.96,10.74]
[1644309470419,19.0384,115.11,114.96,10.74]
[1644309470619,19.0384,115.11,114.96,16.74]
[1644309471223,19.0384,115.11,114.96,29.7787]
[1644309471422,19.0384,115.11,114.96,23.7787]
[1644309471624,19.0384,115.11,114.96,29.7787]
[1644309471823,19.2884,115.11,114.96,23.7787]
[1644309472023,21.39615549,115.11,114.96,29.7787]
[1644309472626,19.2884,115.11,114.96,29.7787]
[1644309473025,6.25,115.11,114.97,1.80208125]
[1644309473225,0.25,115.11,114.99,13.0358]
[1644309473425,13.0358,115.13,114.99,13.0358]
[1644309473626,13.0358,115.13,115.0,10.49]
[1644309473825,13.0358,115.13,115.0,10.74]
[1644309474026,13.0358,115.13,115.0,16.74]
[1644309474232,13.0358,115.13,115.0,29.7748]
[1644309474835,13.0358,115.13,115.0,29.5248]
[1644309475036,2.10775549,115.12,115.0,6.0]
[1644309475236,13.0407,115.09,115.0,6.0]
[1644309475435,25.672213,115.13,114.97,33.604]
[1644309475637,2.10775549,115.14,115.0,113.1]
[1644309475837,10.49,115.15,115.0,10.49]
[1644309476032,12.59775549,115.15,115.0,10.49]
[1644309476331,12.59775549,115.15,115.0,0.25]
[1644309476332,13.0382,115.11,115.0,0.25]
[1644309476732,19.0382,115.11,115.0,0.25]
[1644309477131,19.2882,115.11,115.0,0.25]
[1644309477332,19.2882,115.11,114.99,10.74]
[1644309479234,6.25,115.11,114.99,10.74]
[1644309479635,6.25,115.11,114.99,16.74]
[1644309479834,0.25,115.11,114.99,16.74]
[1644309480237,34.8798,115.18,114.99,29.7757]
[1644309480534,2.10775549,115.15,115.0,23.4382]
[1644309480933,8.10775549,115.15,115.01,10.49]
[1644309481134,6.0,115.15,115.01,10.49]
[1644309481337,13.0333,115.15,115.01,10.49]
[1644309481534,19.0333,115.15,115.01,10.49]
[1644309481737,6.0,115.15,115.01,10.74]
[1644309481937,4.344,115.16,115.03,0.32084712]
[1644309482136,10.49,115.24,115.04,10.49]
[1644309482336,10.49,115.24,115.04,12.54282256]
[1644309482536,4.45408415,115.23,115.05,1.80282256]
[1644309482739,6.44975549,115.23,115.06,10.49]
[1644309482937,2.10775549,115.23,115.06,35.2897]
[1644309483136,2.10775549,115.23,115.07,1.80282256]
[1644309483335,2.35775549,115.23,115.08,10.49]
[1644309483539,13.0288,115.19,115.08,10.49]
[1644309483736,13.0288,115.19,115.06,35.2897]
[1644309484137,6.45075549,115.18,115.06,24.7997]
[1644309484337,2.10775549,115.18,115.06,24.7997]
[1644309484538,2.10775549,115.2,115.06,24.7997]
[1644309484845,2.10775549,115.2,115.06,35.5397]
[1644309485738,13.031,115.17,115.06,35.5397]
[1644309486339,13.031,115.17,115.06,37.34252256]
[1644309486741,13.031,115.17,115.06,35.5397]
[1644309487542,13.031,115.17,115.03,118.5152]
[1644309487543,15.13875549,115.17,115.03,118.5152]
[1644309487741,10.49,115.16,115.03,22.5479]
[1644309487945,13.0375,115.13,115.03,22.5479]
[1644309488844,2.10775549,115.12,114.94,79.0268]
[1644309489042,13.043,115.08,114.93,71.39]
[1644309489242,23.761,115.08,114.94,18.29282256]
[1644309489442,23.761,115.08,114.94,12.29282256]
[1644309489642,13.043,115.08,114.94,18.29282256]
[1644309490243,13.043,115.08,114.94,12.29282256]
[1644309490442,13.043,115.08,114.94,10.49]
[1644309490645,10.49,115.07,114.93,23.7295]
[1644309490843,13.0469,115.03,114.93,23.7295]
[1644309491142,20.9369,115.03,114.93,23.7295]
[1644309491342,26.9369,115.03,114.93,25.53792633]
[1644309491548,6.25,115.03,114.93,25.53792633]
[1644309491744,6.25,115.03,114.93,48.9518199]
[1644309491942,0.25,115.03,114.93,54.9518199]
[1644309492144,0.25,115.03,114.93,55.2018199]
[1644309492344,11.104,115.03,114.93,36.27792633]
[1644309492745,17.104,115.03,114.93,36.27792633]
[1644309493755,30.1508,115.03,114.93,36.27792633]
[1644309493946,30.1508,115.03,114.93,12.29842633]
[1644309494150,30.1508,115.03,114.91,1.80842633]
[1644309494347,30.1508,115.03,114.89,216.55612633]
[1644309494548,30.1508,115.03,114.89,137.98252633]
[1644309496251,40.8908,115.03,114.89,137.98252633]
[1644309497447,29.7868,115.03,114.89,137.98252633]
[1644309498748,29.7868,115.03,114.89,138.23252633]
[1644309500151,23.7868,115.03,114.89,138.23252633]
[1644309501052,23.7868,115.03,114.89,151.28042633]
[1644309501276,23.7868,115.03,114.89,164.2043199]
[1644309501477,13.2968,115.03,114.89,170.2043199]
[1644309501672,13.2968,115.03,114.89,283.3043199]
[1644309501973,13.2968,115.03,114.89,277.3043199]
[1644309502971,13.2968,115.03,114.89,264.38042633]
[1644309503770,13.0468,115.03,114.89,264.38042633]
[1644309504170,13.0468,115.03,114.89,151.28042633]
[1644309504370,25.1658,115.03,114.89,151.28042633]
[1644309504973,25.1658,115.03,114.89,136.1741]
[1644309505171,25.4158,115.03,114.89,137.9870012]
[1644309505371,25.4158,115.03,114.89,136.1741]
[1644309505573,27.52355549,115.03,114.89,136.1741]
[1644309506272,27.52355549,115.03,114.89,59.9348]
[1644309506472,9.91095048,115.02,114.89,49.4448]
[1644309506773,13.052,114.99,114.89,49.4448]
[1644309506972,22.165,114.99,114.89,49.4448]
[1644309507172,13.052,114.99,114.89,51.2577012]
[1644309507575,13.052,114.99,114.89,49.4448]
[1644309508776,13.052,114.99,114.89,51.2577012]
[1644309509176,13.052,114.99,114.89,49.4448]
[1644309509377,21.306,114.99,114.87,99.01792371]
[1644309509578,21.306,114.99,114.87,97.4544]
[1644309509779,10.49,114.98,114.87,97.4544]
[1644309509979,13.0552,114.95,114.87,23.0744]
[1644309510179,22.1192,114.95,114.86,0.024]
[1644309510383,22.1192,114.95,114.84,50.68892371]
[1644309510586,22.1192,114.95,114.84,48.8754]
[1644309510980,22.1192,114.95,114.84,0.024]
[1644309511183,32.8592,114.95,114.83,0.024]
[1644309511584,39.31795549,114.95,114.83,0.024]
[1644309511783,53.89785836,114.95,114.83,0.024]
[1644309511981,66.51156856,114.95,114.83,0.024]
[1644309512682,62.16056856,114.95,114.83,0.024]
[1644309512880,201.82342709,114.95,114.83,0.024]
[1644309513481,70.68342709,114.95,114.83,0.024]
[1644309513685,13.0694,114.9,114.83,0.024]
[1644309513879,13.0694,114.9,114.81,0.43412552]
[1644309513880,10.49,114.89,114.81,0.43412552]
[1644309514080,12.59775549,114.89,114.81,0.43412552]
[1644309514681,2.10775549,114.88,114.81,0.43412552]
[1644309514884,23.5596,114.87,114.81,0.43412552]
[1644309515085,13.0696,114.87,114.81,0.43412552]
[1644309515281,2.10775549,114.93,114.81,2.25016231]
[1644309515481,4.352,114.96,114.81,2.25016231]
[1644309515681,10.49,114.95,114.82,0.024]
[1644309516284,43.5374,114.94,114.82,0.024]
[1644309516482,54.0274,114.94,114.82,0.024]
[1644309517885,84.52804804,114.94,114.82,0.024]
[1644309518086,79.52804804,114.94,114.82,0.024]
[1644309518285,77.42029255,114.94,114.82,0.024]
[1644309518485,83.88004804,114.94,114.82,0.024]
[1644309519086,81.77229255,114.94,114.82,0.024]
[1644309519585,77.42029255,114.94,114.82,0.024]
[1644309520585,77.17029255,114.94,114.82,0.024]
[1644309520787,49.0274,114.94,114.82,1.84135941]
[1644309520991,6.42561,114.94,114.82,1.84135941]
[1644309521189,6.42561,114.94,114.83,10.49]
[1644309521588,6.42561,114.94,114.84,14.87573608]
[1644309521789,6.42561,114.94,114.85,10.49]
[1644309521990,47.8402,115.03,114.85,12.31283608]
[1644309522190,91.3431,115.03,114.86,49.67013608]
[1644309522390,91.3431,115.03,114.87,10.514]
[1644309522589,91.3431,115.03,114.87,12.33683608]
[1644309522889,91.3431,115.03,114.88,1.82283608]
[1644309523092,105.92300287,115.03,114.89,10.514]
[1644309523388,105.92300287,115.03,114.9,0.024]
[1644309523389,13.0494,115.01,114.9,0.024]
[1644309523589,13.0494,115.01,114.9,12.31283608]
[1644309523789,13.0494,115.01,114.9,12.58683608]
[1644309523994,13.0494,115.01,114.9,10.514]
[1644309524291,13.0494,115.01,114.9,10.49]
[1644309524891,13.0494,115.01,114.88,10.514]
[1644309525289,13.0494,115.01,114.88,12.33683608]
[1644309525489,13.0494,115.01,114.88,10.514]
[1644309525689,13.2994,115.01,114.88,0.024]
[1644309526091,13.2994,115.01,114.88,10.514]
[1644309526893,40.05030287,115.01,114.88,10.514]
[1644309527493,42.15805836,115.01,114.88,0.024]
[1644309527695,52.64805836,115.01,114.88,0.024]
[1644309527994,66.21104804,115.01,114.88,0.024]
[1644309529496,13.0575,114.97,114.88,0.024]
[1644309529696,8.0575,114.97,114.86,0.024]
[1644309529996,8.0575,114.97,114.85,23.6853]
[1644309530200,8.0575,114.97,114.85,23.7093]
[1644309530697,8.0575,114.97,114.85,23.9593]
[1644309531100,18.5475,114.97,114.85,23.9353]
[1644309531299,18.5475,114.97,114.85,30.33773]
[1644309531901,30.56273275,114.97,114.85,6.40243]
[1644309532101,49.49363562,114.97,114.85,6.42643]
[1644309532301,49.49363562,114.97,114.85,6.40243]
[1644309532302,4.351,114.96,114.85,6.40243]
[1644309532501,13.064,114.93,114.85,6.40243]
[1644309532701,34.36,114.93,114.85,6.40243]
[1644309533601,34.61,114.93,114.85,6.40243]
[1644309534205,13.064,114.93,114.85,6.40243]
[1644309534404,4.351,114.96,114.85,6.40243]
[1644309534405,13.0548,114.96,114.85,6.40243]
[1644309534603,13.0548,114.96,114.86,1.82791162]
[1644309534803,13.0548,114.96,114.86,8.47978162]
[1644309535009,10.49,115.03,114.87,16.89131]
[1644309535203,10.49,115.03,114.87,18.96922162]
[1644309535403,10.49,115.03,114.88,0.024]
[1644309535803,13.0521,114.98,114.88,0.024]
[1644309536003,13.0521,114.98,114.87,20.19945596]
[1644309536209,13.0521,114.98,114.87,20.22345596]
[1644309536404,13.0521,114.98,114.87,18.99322162]
[1644309536604,13.0521,114.98,114.87,17.16531]
[1644309537204,13.3021,114.98,114.87,17.16531]
[1644309537403,13.0521,114.98,114.87,17.16531]
[1644309537606,13.0521,114.98,114.87,18.99322162]
[1644309537804,13.0521,114.98,114.87,20.22345596]
[1644309538002,13.0521,114.98,114.87,13.79814596]
[1644309538702,13.3021,114.98,114.87,13.79814596]
[1644309538903,13.3021,114.98,114.87,10.764]
[1644309539306,13.3021,114.98,114.87,10.514]
[1644309539904,13.3021,114.98,114.87,10.49]
[1644309540505,13.3021,114.98,114.87,0.024]
[1644309540707,13.0569,114.94,114.85,1.25423434]
[1644309541106,13.0569,114.94,114.85,0.274]
[1644309541809,13.0569,114.94,114.85,1.50423434]
[1644309542106,13.0569,114.94,114.85,11.99423434]
[1644309544109,13.0538,114.96,114.85,26.87564596]
[1644309544315,13.0538,114.96,114.86,1.23023434]
[1644309544712,13.0538,114.96,114.86,1.48023434]
[1644309545110,13.0538,114.96,114.86,1.23023434]
[1644309545412,13.0538,114.96,114.86,14.28283434]
[1644309545611,13.0538,114.96,114.86,16.11074596]
[1644309546011,13.0538,114.96,114.87,1.23023434]
[1644309546212,13.0538,114.96,114.87,0.25]
[1644309546413,13.0538,114.96,114.87,1.23023434]
[1644309546614,13.0538,114.96,114.86,1.23023434]
[1644309546816,13.0538,114.96,114.86,1.48023434]
[1644309547213,22.4278,114.96,114.86,1.23023434]
[1644309547413,22.4278,114.96,114.85,1.25423434]
[1644309547713,13.0607,114.92,114.85,0.024]
[1644309547914,23.5027,114.92,114.84,1.23023434]
[1644309548313,13.3107,114.92,114.85,1.82345309]
[1644309548714,13.3107,114.92,114.84,1.23023434]
[1644309548912,13.3107,114.92,114.85,1.23023434]
[1644309549114,13.3107,114.92,114.84,1.23023434]
[1644309549318,13.3107,114.92,114.83,80.19793434]
[1644309549714,13.3107,114.92,114.83,1.23023434]
[1644309549935,13.3107,114.92,114.84,1.23023434]
[1644309550235,13.3107,114.92,114.83,1.23023434]
[1644309550832,24.6997,114.92,114.83,1.23023434]
[1644309551435,24.6997,114.92,114.82,1.25423434]
[1644309551842,13.3107,114.92,114.82,3.07319927]
[1644309552334,13.3107,114.92,114.83,1.23023434]
[1644309553034,13.3107,114.92,114.83,1.48023434]
[1644309553438,13.3107,114.92,114.83,3.29919927]
[1644309553637,13.3107,114.92,114.84,1.23023434]
[1644309553835,13.3107,114.92,114.84,11.97023434]
[1644309554035,13.3107,114.92,114.85,1.23023434]
[1644309554236,13.3107,114.92,114.85,1.48023434]
[1644309554538,13.3107,114.92,114.84,11.72023434]
[1644309554737,21.4617,114.92,114.84,11.72023434]
[1644309556637,21.4617,114.92,114.83,1.23023434]
[1644309557238,21.4617,114.92,114.82,1.25423434]
[1644309557440,13.3107,114.92,114.83,1.23023434]
[1644309557641,13.3107,114.92,114.84,1.23023434]
[1644309558343,13.3107,114.92,114.83,1.23023434]
[1644309558542,13.3107,114.92,114.84,1.81896493]
[1644309558741,13.3107,114.92,114.84,1.23023434]
[1644309558941,13.3107,114.92,114.83,1.23023434]
[1644309559144,24.4977,114.92,114.83,1.23023434]
[1644309559744,24.4977,114.92,114.83,1.48023434]
[1644309559944,13.3107,114.92,114.83,3.04919927]
[1644309560143,13.3107,114.92,114.84,10.49]
[1644309560345,13.3107,114.92,114.84,11.72023434]
[1644309560844,13.0607,114.92,114.84,11.72023434]
[1644309561144,13.0607,114.92,114.85,1.81896493]
[1644309561345,13.0558,114.94,114.85,11.97023434]
[1644309561945,13.0558,114.94,114.85,11.72023434]
[1644309562147,13.0558,114.94,114.86,1.23023434]
[1644309562544,13.0558,114.94,114.84,1.23023434]
[1644309562744,25.1978,114.94,114.84,1.23023434]
[1644309562944,25.1978,114.94,114.83,1.25423434]
[1644309563846,13.0558,114.94,114.83,1.25423434]
[1644309564653,13.3058,114.94,114.84,1.23023434]
[1644309564847,13.3058,114.94,114.84,1.48023434]
[1644309565848,13.3058,114.94,114.84,1.23023434]
[1644309566051,13.3058,114.94,114.83,1.25423434]
[1644309566249,26.10955549,114.94,114.83,1.25423434]
[1644309566450,26.10955549,114.94,114.83,0.024]
[1644309567655,30.46155549,114.94,114.81,24.37845986]
[1644309567852,30.46155549,114.94,114.82,0.024]
[1644309568452,30.46155549,114.94,114.82,1.25423434]
[1644309568653,40.95155549,114.94,114.82,1.25423434]
[1644309569053,36.59955549,114.94,114.82,1.25423434]
[1644309569253,36.59955549,114.94,114.82,0.024]
[1644309569956,36.59955549,114.94,114.82,1.25423434]
[1644309570358,36.59955549,114.94,114.82,0.024]
[1644309571356,40.95155549,114.94,114.82,0.024]
[1644309572457,36.59955549,114.94,114.82,0.024]
[1644309575064,34.4918,114.94,114.82,0.024]
[1644309575261,23.7958,114.94,114.82,0.024]
[1644309575662,23.5458,114.94,114.82,0.024]
[1644309576860,23.7958,114.94,114.82,0.024]
[1644309577060,32.2278,114.94,114.82,0.024]
[1644309577261,2.10775549,114.93,114.82,0.024]
[1644309577462,13.0663,114.9,114.82,0.024]
[1644309577666,23.3413,114.9,114.81,0.43412552]
[1644309578664,13.0663,114.9,114.81,0.43412552]
[1644309580172,13.0663,114.9,114.81,2.25309045]
[1644309580667,13.0663,114.9,114.81,3.48332479]
[1644309581067,13.0663,114.9,114.81,1.66435986]
[1644309582771,13.3163,114.9,114.81,1.66435986]
[1644309583169,24.2073,114.9,114.81,1.66435986]
[1644309583370,24.2073,114.9,114.81,0.43412552]
[1644309586171,13.3163,114.9,114.82,1.81896493]
[1644309586575,13.0663,114.9,114.81,1.66435986]
[1644309586784,13.0663,114.9,114.8,1.23566228]
[1644309586972,10.49,114.89,114.8,1.23566228]
[1644309587172,13.0699,114.87,114.74,1.23566228]
[1644309587371,10.49,114.86,114.73,1.23566228]
[1644309587574,10.49,114.86,114.73,7.23566228]
[1644309587771,27.6742362,114.86,114.73,1.23566228]
[1644309587976,44.10444811,114.86,114.73,1.23566228]
[1644309588171,2.10775549,114.85,114.73,1.23566228]
[1644309588373,13.0711,114.83,114.73,1.23566228]
[1644309588973,13.0711,114.83,114.72,1.23566228]
[1644309589175,23.5611,114.83,114.72,1.23566228]
[1644309589374,23.5611,114.83,114.72,1.48566228]
[1644309589573,23.5611,114.83,114.72,1.23566228]
[1644309589774,23.5611,114.83,114.73,1.23566228]
[1644309589976,13.0711,114.83,114.73,19.68037809]
[1644309590175,13.3211,114.83,114.73,19.68037809]
[1644309590374,13.0711,114.83,114.73,14.30386228]
[1644309590582,13.0711,114.83,114.74,1.23566228]
[1644309590775,54.0467,114.86,114.75,1.23566228]
[1644309590776,13.0658,114.84,114.75,1.23566228]
[1644309590980,10.49,114.89,114.75,11.72566228]
[1644309591194,10.49,114.89,114.76,19.65892747]
[1644309591396,16.43021191,114.9,114.77,10.49]
[1644309591596,59.97171191,114.9,114.77,29.5533]
[1644309591794,13.0598,114.9,114.77,31.03896228]
[1644309591996,13.0598,114.9,114.78,19.63420259]
[1644309592196,26.43327208,114.95,114.79,11.72566228]
[1644309592496,11.65883016,114.97,114.8,49.48346228]
[1644309592696,10.49,114.97,114.81,10.49]
[1644309592895,13.057,114.93,114.83,13.057]
[1644309593295,13.057,114.93,114.83,13.307]
[1644309594097,13.057,114.93,114.83,13.057]
[1644309594298,13.057,114.93,114.82,34.1867]
[1644309594699,13.307,114.93,114.82,34.4367]
[1644309594899,13.057,114.93,114.82,34.4367]
[1644309596200,13.307,114.93,114.82,34.4367]
[1644309597000,13.307,114.93,114.82,23.9467]
[1644309599102,13.057,114.93,114.82,38.24026228]
[1644309599302,13.057,114.93,114.83,10.49]
[1644309599702,13.057,114.93,114.83,10.74]
[1644309600303,13.057,114.93,114.83,0.25]
[1644309600703,13.307,114.93,114.82,37.0037]
[1644309601511,13.307,114.93,114.82,38.23936228]
[1644309602007,13.307,114.93,114.82,37.0037]
[1644309602608,13.307,114.93,114.82,37.0277]
[1644309604212,13.307,114.93,114.82,38.26336228]
[1644309605012,13.307,114.93,114.82,37.0277]
[1644309605509,13.307,114.93,114.82,23.9707]
[1644309605916,13.057,114.93,114.82,23.9707]
[1644309606121,13.057,114.93,114.82,31.20636228]
[1644309606314,1.16883016,115.0,114.83,11.72566228]
[1644309606615,11.65883016,115.01,114.84,47.0059]
[1644309606812,11.65883016,115.01,114.85,10.49]
[1644309607011,11.65883016,115.01,114.86,13.053]
[1644309607012,10.49,115.01,114.86,13.053]
[1644309607212,43.4974,115.02,114.87,34.8724]
[1644309607412,13.0489,115.0,114.88,24.9345]
[1644309607612,13.0489,115.0,114.88,41.4245]
[1644309607813,10.49,115.03,114.88,41.4245]
[1644309607814,20.76459762,115.04,114.88,41.6745]
[1644309608011,16.41459762,115.04,114.89,22.7996]
[1644309608213,1.16883016,115.05,114.9,13.0483]
[1644309608416,1.16883016,115.06,114.91,22.7996]
[1644309608613,1.16883016,115.08,114.92,10.49]
[1644309608813,283.11899468,115.11,114.92,115.77263138]
[1644309608814,1.16883016,115.1,114.92,115.77263138]
[1644309609013,284.28782484,115.11,114.92,120.5369691]
[1644309609214,284.28782484,115.11,114.93,1.8195691]
[1644309609513,10.49,115.1,114.94,35.0457]
[1644309609715,13.0408,115.08,114.96,13.0399]
[1644309610116,13.0408,115.08,114.96,19.2899]
[1644309611319,13.0408,115.08,114.96,21.1094691]
[1644309612116,13.0408,115.08,114.96,31.5994691]
[1644309612719,13.06939338,115.1,114.96,31.5994691]
[1644309612922,0.03069338,115.1,114.96,40.9354691]
[1644309613118,0.03069338,115.13,114.96,40.9354691]
[1644309613618,0.03069338,115.13,114.96,52.49002934]
[1644309613820,13.06509338,115.14,115.01,13.0334]
[1644309614118,0.03069338,115.12,115.02,1.81783671]
[1644309614320,13.06509338,115.14,115.02,2.06783671]
[1644309614519,13.06509338,115.14,115.02,18.55783671]
[1644309614720,13.31509338,115.14,115.02,18.55783671]
[1644309615120,13.31509338,115.14,115.02,16.74]
[1644309615419,13.31509338,115.14,115.02,18.55783671]
[1644309615622,13.06509338,115.14,115.02,18.55783671]
[1644309616321,13.06509338,115.14,115.02,16.74]
[1644309616520,13.06509338,115.14,115.02,18.55783671]
[1644309616923,0.03069338,115.14,115.02,18.55783671]
[1644309617121,13.0324,115.16,115.02,18.55783671]
[1644309617122,0.03069338,115.16,115.02,41.47712717]
[1644309617321,0.03069338,115.14,115.03,48.9432]
[1644309617624,0.03069338,115.15,115.04,10.49]
[1644309617823,16.00283016,115.22,115.04,10.49]
[1644309617824,0.03069338,115.2,115.05,24.524]
[1644309618023,0.03069338,115.2,115.06,10.49]
[1644309618222,0.03069338,115.22,115.06,18.55783671]
[1644309618421,34.7202,115.23,115.06,18.55783671]
[1644309618422,0.03069338,115.19,115.06,18.55783671]
[1644309618627,0.03069338,115.22,115.07,49.80373671]
[1644309618823,0.03069338,115.19,115.07,60.54373671]
[1644309619023,0.03069338,115.19,115.08,1.81783671]
[1644309619224,0.03069338,115.22,115.09,10.49]
[1644309619424,0.03069338,115.19,115.09,34.6255]
[1644309619624,0.03069338,115.23,115.1,1.81783671]
[1644309619823,0.03069338,115.23,115.1,2.06783671]
[1644309620023,0.03069338,115.23,115.1,8.06783671]
[1644309620227,0.03069338,115.23,115.1,6.25]
[1644309620825,13.0258,115.22,115.1,6.25]
[1644309621025,13.05649338,115.22,115.1,6.25]
[1644309621526,13.05649338,115.22,115.1,0.25]
[1644309621724,13.30649338,115.22,115.1,6.0]
[1644309621924,13.30649338,115.22,115.1,6.25]
[1644309622128,13.30649338,115.22,115.09,34.6255]
[1644309622328,28.41085428,115.22,115.09,24.1355]
[1644309622528,14.93232302,115.21,115.09,24.1355]
[1644309622725,25.42232302,115.21,115.07,23.8504]
[1644309622925,13.0312,115.18,115.05,10.49]
[1644309623127,25.40489338,115.18,115.02,4.341]
[1644309623325,131.14,115.15,115.02,4.341]
[1644309623526,43.4793,115.13,114.92,13.0429]
[1644309623830,10.49,115.12,114.93,6.39797]
[1644309624026,25.67224887,115.12,114.94,10.49]
[1644309624226,2.13844887,115.11,114.95,6.39686]
[1644309624625,10.49,115.1,114.95,6.39686]
[1644309624826,10.49,115.1,114.95,12.39686]
[1644309624827,0.03069338,115.09,114.95,12.39686]
[1644309625026,13.07159338,115.09,114.95,12.39686]
[1644309625226,10.52069338,115.08,114.95,6.39686]
[1644309625628,12.62844887,115.08,114.95,6.39686]
[1644309625828,2.10775549,115.07,114.94,24.1138]
[1644309626029,10.49,115.06,114.94,24.1138]
[1644309626227,13.0475,115.03,114.94,24.1138]
[1644309626430,13.0475,115.03,114.93,24.0681]
[1644309627030,25.64525549,115.03,114.88,189.7343]
[1644309627229,25.64525549,115.03,114.89,6.4002]
[1644309627428,29.99425549,115.03,114.89,6.4002]
[1644309627629,25.64525549,115.03,114.89,6.4002]
[1644309628231,41.70603312,115.03,114.89,6.4002]
[1644309628530,41.70603312,115.03,114.84,72.3605]
[1644309628731,13.0569,114.97,114.84,84.76348]
[1644309628934,23.5469,114.97,114.84,84.76348]
[1644309629130,23.5469,114.97,114.84,78.76348]
[1644309629734,23.5469,114.97,114.84,79.01348]
[1644309630133,23.5469,114.97,114.84,72.6105]
[1644309630936,33.5019,114.97,114.84,72.6105]
[1644309631336,35.60965549,114.97,114.84,72.6105]
[1644309631537,33.5019,114.97,114.84,72.6105]
[1644309631935,23.5469,114.97,114.84,72.6105]
[1644309632135,23.7969,114.97,114.84,78.6105]
[1644309632335,13.3069,114.97,114.84,78.6105]
[1644309634556,13.3069,114.97,114.84,89.1005]
[1644309637557,0.25,114.97,114.85,13.0518]
[1644309637758,13.0515,114.99,114.85,13.3018]
[1644309637958,13.0515,114.99,114.85,29.7918]
[1644309640260,13.3015,114.99,114.85,29.7918]
[1644309646667,13.3015,114.99,114.85,29.5418]
[1644309646865,25.7555,114.99,114.85,29.5418]
[1644309648169,25.7555,114.99,114.85,29.7918]
[1644309649369,25.5055,114.99,114.85,29.7918]
[1644309649970,13.0515,114.99,114.85,29.7918]
[1644309650774,13.0515,114.99,114.85,31.02746228]
[1644309652978,13.0515,114.99,114.86,1.23566228]
[1644309653175,13.3015,114.99,114.86,30.77656228]
[1644309653376,13.3015,114.99,114.86,31.02656228]
[1644309654076,13.3015,114.99,114.87,1.23566228]
[1644309654475,13.3015,114.99,114.87,6.0]
[1644309654981,13.3015,114.99,114.87,7.23566228]
[1644309655377,13.3015,114.99,114.87,7.48566228]
[1644309655681,13.3015,114.99,114.88,1.23566228]
[1644309655878,13.3015,114.99,114.87,7.48566228]
[1644309657079,13.3015,114.99,114.88,1.23566228]
[1644309657280,13.3015,114.99,114.88,1.48566228]
[1644309657479,13.0515,114.99,114.88,7.48566228]
[1644309658881,13.0515,114.99,114.88,20.53536228]
[1644309659082,13.0515,114.99,114.89,1.23566228]
[1644309659281,13.0515,114.99,114.89,1.48566228]
[1644309659481,13.0515,114.99,114.89,7.48566228]
[1644309659683,13.0515,114.99,114.89,1.48566228]
[1644309659884,13.0515,114.99,114.89,0.25]
[1644309660085,13.0515,114.99,114.89,7.48566228]
[1644309660284,13.0515,114.99,114.89,6.25]
[1644309660485,12.5515,114.99,114.89,1.48566228]
[1644309660687,42.52163974,115.01,114.89,1.48566228]
[1644309661284,42.77163974,115.01,114.89,7.48566228]
[1644309661785,13.0515,114.99,114.89,7.48566228]
[1644309661985,13.0515,114.99,114.9,1.23566228]
[1644309662185,13.0515,114.99,114.89,7.48566228]
[1644309662386,13.0515,114.99,114.9,0.25]
[1644309662686,13.0515,114.99,114.89,7.23566228]
[1644309662986,13.0515,114.99,114.89,6.0]
[1644309663186,13.0515,114.99,114.89,1.23566228]
[1644309663386,13.0515,114.99,114.88,55.47836228]
[1644309663689,13.0515,114.99,114.89,1.23566228]
[1644309664085,13.0515,114.99,114.89,1.48566228]
[1644309664487,13.0515,114.99,114.89,1.23566228]
[1644309664788,12.54,114.98,114.88,1.23566228]
[1644309664988,13.0578,114.95,114.87,1.23566228]
[1644309665187,24.5318,114.95,114.87,1.23566228]
[1644309665387,24.5318,114.95,114.86,1.23566228]
[1644309666212,24.5318,114.95,114.85,1.23566228]
[1644309666610,24.5318,114.95,114.85,1.48566228]
[1644309666811,25.5978,114.95,114.85,1.23566228]
[1644309667914,25.5978,114.95,114.84,1.23566228]